Cogmind - Beta 13 @@@ ROGUE MODE // 2024.05.23 @ 00:23:56 Player: mrwizrd Result: Destroyed by as-89864 with Assembled Heavy Rifle Performance ------------- Evolutions (0) 0 Regions Visited (2) 400 Robots Destroyed (8) 40 Value Destroyed (195) 195 Prototype IDs (2) 40 Alien Tech Used (0) 0 Bonus (0) 0 TOTAL SCORE: 675 Bonus ------- None Cogmind --------- Core Integrity 0/250 Matter 300/300 Energy 125/125 System Corruption 0% Temperature Cool (0) Movement Walking (120) Location -10/Mines Parts ------- > --- POWER (1) -------- Light Ion Engine > --- PROPULSION (2) --- Aluminum Leg Flexi-carbon Leg > --- UTILITY (2) ------ Medium Storage Unit Signal Interpreter > --- WEAPON (2) ------- Particle Gun > --- INVENTORY (10) --- Aluminum Leg Aluminum Leg Aluminum Leg Aluminum Leg Peak State ------------ > --- POWER ------------ Light Ion Engine > --- PROPULSION ------- Aluminum Leg Flexi-carbon Leg > --- UTILITY ---------- Medium Storage Unit Signal Interpreter > --- WEAPON ----------- Particle Gun > --- INVENTORY -------- Aluminum Leg Aluminum Leg Aluminum Leg Aluminum Leg [Rating: 11] Favorites ----------- Power Ion Engine Engine Ion Engine Propulsion Light Treads Treads Light Treads Leg Aluminum Leg Utility Signal Interpreter Device Seismic Detector Storage Small Storage Unit Processor Signal Interpreter Weapon Small Laser Energy Gun Small Laser Energy Cannon Beam Cannon Ballistic Gun Assault Rifle Build | -11 -10 -10 ------- Run | Yrd Mat Min Slots Evolved . | . . . Power . | . . . Propulsion . | . . . Utility . | . . . Weapon . | . . . Parts Attached 21 | 6 10 5 Power 3 | 1 1 1 Engine 3 | 1 1 1 Core . | . . . Reactor . | . . . Propulsion 7 | 2 3 2 Treads 2 | 2 . . Leg 5 | . 3 2 Wheel . | . . . Hover . | . . . Flight . | . . . Utility 4 | 1 2 1 Device 1 | . 1 . Storage 2 | 1 . 1 Processor 1 | . 1 . Hackware . | . . . Protection . | . . . Artifact . | . . . Weapon 7 | 2 4 1 Energy Gun 4 | 1 2 1 Energy Cannon 1 | . 1 . Ballistic Gun 2 | 1 1 . Ballistic Cannon . | . . . Launcher . | . . . Special Weapon . | . . . Impact Weapon . | . . . Slashing Weapon . | . . . Piercing Weapon . | . . . Special Melee Weapon . | . . . Unidentified Prototypes . | . . . Parts Lost 4 | . . 4 Power 1 | . . 1 Propulsion . | . . . Utility 1 | . . 1 Weapon 2 | . . 2 Highest Loss Streak 3 | . . 3 To Critical Strikes . | . . . Average Slot Usage (%) 95 | . 99 83 Engine 12 | . 14 9 Treads 15 | . 19 . Leg 12 | . 8 28 Device 10 | . 12 4 Storage 2 | . 1 4 Processor 13 | . 13 14 Energy Gun 10 | . 10 9 Energy Cannon 4 | . 3 7 Ballistic Gun 11 | . 14 4 Naked Turns . | . . . Heaviest Build 16 | 12 12 16 Greatest Support 40 | 40 40 30 Greatest Overweight (x) 1 | 1 . . Average Overweight (x) . | . . . Largest Inventory Capacity 10 | 8 8 10 Average Capacity 5 | 7 5 6 Most Carried 6 | 6 5 5 Average Carried 4 | 3 4 4 Final Capacity 10 | 8 5 10 Final Carried 5 | 4 5 4 Class Distribution -------------------- 90% | Mutant 9% | Scavenger-Mutant Dominant Class ---------------- Mutant | -10/Materials Scavenger-Mutant | -10/Mines Resources | -11 -10 -10 ----------- Run | Yrd Mat Min Matter Collected 464 | 210 192 62 Remotely . | . . . Salvage Created 330 | . 246 84 Parts 13 | . 13 . Haulers Intercepted . | . . . Recyclers Shooed . | . . . Parts Field Recycled . | . . . Retrieved Matter . | . . . Parts Self-Destructed . | . . . Prevented . | . . . Kills | -11 -10 -10 ------- Run | Yrd Mat Min Combat Hostiles Destroyed 12 | . 7 5 Guns 8 | . 7 1 Cannons 4 | . . 4 Classes Destroyed 4 | . 3 1 Watcher 1 | . 1 . Swarmer 3 | . 3 . Grunt 4 | . 4 . Assembled 5 | . . 5 Best Kill Streak 5 | . 4 5 Combat Bots Only 5 | . 3 5 Max Kills in Single Turn 1 | . 1 1 Gunslinging . | . . . Exploded . | . . . Melee . | . . . Uniques/NPCs Destroyed . | . . . Combat | -11 -10 -10 -------- Run | Yrd Mat Min Hostile Shots Fired 122 | . 53 69 Missed 40 | . 18 22 Damage Taken 1091 | . 384 707 Core 250 | . 70 180 Absorbed by Shields . | . . . Core Remaining (%) 100 | 100 . . Volleys Fired 52 | . 38 14 Largest 2 | . 2 2 Hottest 125 | . 60 125 Shots Fired 104 | . 76 28 Gun 90 | . 76 14 Cannon 14 | . . 14 Launcher . | . . . Special . | . . . Kinetic 47 | . 38 9 Thermal 57 | . 38 19 Explosive . | . . . Electromagnetic . | . . . Robot Hit Streak 7 | . 5 7 Robot Miss Streak 4 | . 4 4 Penetration Max . | . . . Secondary Targets 1 | . 1 . Max Gunslinging Chain 1 | . 1 . Shots Hit Robots 56 | . 41 15 Core Hits 26 | . 15 11 Critical Kills . | . . . Critical Parts Destroyed . | . . . Critical Strikes 1 | . . 1 Burn 1 | . . 1 Melee Attacks . | . . . Impact . | . . . Slashing . | . . . Piercing . | . . . Sneak Attacks . | . . . Combat Hostiles . | . . . Follow-up Attacks . | . . . Damage Inflicted 677 | . 400 277 Guns 494 | . 400 94 Cannons 175 | . . 175 Explosions . | . . . Melee . | . . . Ramming 8 | . . 8 Kinetic 250 | . 173 77 Thermal 419 | . 227 192 Explosive . | . . . Electromagnetic . | . . . Impact . | . . . Slashing . | . . . Piercing . | . . . Highest Corruption . | . . . Average Corruption . | . . . Corruption Purged . | . . . Corruption Blocked . | . . . Overload Shots . | . . . Overflow Damage . | . . . Projectiles . | . . . Explosions . | . . . Melee . | . . . Knockbacks . | . . . Impact . | . . . Kinetic . | . . . Secondary . | . . . Self-Inflicted Damage . | . . . Shots . | . . . Rammed . | . . . Targets Rammed 3 | . . 3 Kicked 3 | . . 3 Crushed . | . . . Highest Temperature 504 | . 88 504 Average Temperature 112 | . 32 240 Received Heat Transfer 460 | . 180 280 Effects 1 | . . 1 Energy Bleed 1 | . . 1 Siege Activations . | . . . Robots Corrupted . | . . . Combat Hostiles . | . . . Parts Fried . | . . . Impact Corruptions . | . . . Robots Melted . | . . . Combat Hostiles . | . . . Parts Melted . | . . . Heat Transferred 1006 | . 525 481 Parts Sabotaged . | . . . Parts Stolen . | . . . Parts Stripped . | . . . Power Chain Reactions . | . . . Alert | -11 -10 -10 ------- Run | Yrd Mat Min Peak Influence 157 | . 157 21 Initial 21 | . . 21 Average 34 | . 49 5 Maximum Alert Level . | . . . Low Security (%) 100 | 100 100 100 Level 1 . | . . . Level 2 . | . . . Level 3 . | . . . Level 4 . | . . . Level 5 . | . . . High Security . | . . . Max Security . | . . . Squads Dispatched 1 | . 1 . Investigation . | . . . Extermination . | . . . Reinforcement 1 | . 1 . Assault . | . . . Garrison . | . . . Intercept . | . . . Searches Triggered . | . . . Construction Impeded . | . . . Haulers Reinforced . | . . . Active Scanning Responses . | . . . Cargo Convoy Interrupts . | . . . Stealth | -11 -10 -10 --------- Run | Yrd Mat Min Distress Signals 2 | . 2 . Communications Jammed . | . . . Distress Signals . | . . . Times Spotted 22 | . 13 9 Peak Tracking Total 7 | . 3 7 Tactical Retreats 2 | . . 2 Traps | -11 -10 -10 ------- Run | Yrd Mat Min Traps Triggered . | . . . Indirectly . | . . . Trap Hack Attempts . | . . . Triggered . | . . . Disarmed . | . . . Reprogrammed . | . . . Reused . | . . . Traps Extracted . | . . . Installed . | . . . Triggered . | . . . Machines | -11 -10 -10 ---------- Run | Yrd Mat Min Machines Disabled . | . . . Max in Single Turn . | . . . Machines Repaired . | . . . Machines Dismantled . | . . . Machines Sabotaged . | . . . Overloaded Fab Kills . | . . . Hacking | -11 -10 -10 --------- Run | Yrd Mat Min Machines Accessed 2 | . 2 . Terminals 2 | . 2 . Fabricators . | . . . Repair Stations . | . . . Recycling Units . | . . . Scanalyzers . | . . . Garrison Access . | . . . Total Hacks 2 | . 2 . Successful 2 | . 2 . Failed . | . . . Catastrophic . | . . . Database Lockouts . | . . . Manual . | . . . Terminals 2 | . 2 . Fabricators . | . . . Repair Stations . | . . . Recycling Units . | . . . Scanalyzers . | . . . Garrison Access . | . . . Terminal Hacks 2 | . 2 . Prototype ID Bank 1 | . 1 . Unreport Threat 1 | . 1 . Fabricator Hacks . | . . . Repair Station Hacks . | . . . Recycling Unit Hacks . | . . . Scanalyzer . | . . . Garrison Access Hacks . | . . . Unauthorized Hacks . | . . . Terminals . | . . . Fabricators . | . . . Repair Stations . | . . . Recycling Units . | . . . Scanalyzers . | . . . Garrison Access . | . . . Data Cores Recovered . | . . . Used . | . . . Hacking Detections 1 | . 1 . Full Trace Events . | . . . Feedback Events . | . . . Feedback Blocked . | . . . Robot Schematics Acquired . | . . . Robots Built . | . . . Authchips . | . . . Time . | . . . Total Robot Build Rating . | . . . Part Schematics Acquired . | . . . Parts Built . | . . . Authchips . | . . . Time . | . . . Total Part Build Rating . | . . . Parts Repaired . | . . . Time . | . . . Parts Recycled . | . . . Recycled Matter . | . . . Retrieved Matter . | . . . Retrieved Components . | . . . Parts Scanalyzed . | . . . Part Schematics Acquired . | . . . Parts Damaged . | . . . Bothacking | -11 -10 -10 ------------ Run | Yrd Mat Min Used RIF Installer . | . . . Robots Hacked . | . . . Non-combat . | . . . Combat . | . . . Robot Hacks Applied . | . . . Relay Couplers Released . | . . . Fabnet Peak Effective % . | . . . Robots Rewired . | . . . Allies Hacked . | . . . Hacks Repelled . | . . . Allies | -11 -10 -10 -------- Run | Yrd Mat Min Total Allies . | . . . Largest Group . | . . . Highest-Rated Group . | . . . Highest-Rated Ally . | . . . Total Orders . | . . . Ally Attacks . | . . . Total Damage . | . . . Kills . | . . . Allies Corrupted . | . . . Allies Melted . | . . . Intel | -11 -10 -10 ------- Run | Yrd Mat Min Robot Analysis Total . | . . . Derelict Logs Recovered 1 | . . 1 Drone Launches . | . . . Drone Recoveries . | . . . Exploration | -11 -10 -10 ------------- Run | Yrd Mat Min Turns Passed 954 | 137 640 177 Spaces Moved 539 | 83 352 104 Core 12 | 12 . . Treads 277 | 71 206 . Legs 250 | . 146 104 Wheels . | . . . Hover . | . . . Flight . | . . . Fastest Speed 50 | 50 120 120 Average Speed 139 | 149 143 120 Slowest Speed 160 | 160 160 120 Overloaded Moves . | . . . Propulsion Burnouts . | . . . Robots Hopped . | . . . Cave-ins Triggered . | . . . Exploration Rate (%) 20 | 6 33 23 Regions Visited 2 Branch Regions 1 Pre-discovered Areas . | . . . Known Exits Taken 1 | . 1 . Unknown Exits Taken 1 | 1 . . Scrap Searched . | . . . Spaces Dug . | . . . Terrain Destroyed . | . . . Melee . | . . . Projectile . | . . . AOE . | . . . Terrain Rammed . | . . . Walls Destroyed . | . . . Machines Disabled . | . . . Actions | -11 -10 -10 --------- Run | Yrd Mat Min Total 642 | 94 422 126 Wait . | . . . Move 537 | 82 351 104 Hop . | . . . Pick Up 16 | 6 10 . Fast Attach 7 | 4 2 1 Attach 5 | 2 1 2 Detach . | . . . Swap 9 | . 7 2 Drop 13 | . 13 . Fire 52 | . 38 14 Melee . | . . . Ram . | . . . Kick 3 | . . 3 Crush . | . . . Escape Stasis . | . . . Rewire . | . . . Trap . | . . . Miscellaneous . | . . . Route ------- -11/Scrapyard -10/Materials -10/Mines History --------- Turn | Location | Event 13 | -11/Scrapyard | Discovered new exit (range 15) 138 | -11/Scrapyard | Entered Materials 312 | -10/Materials | Build established: Mutant 711 | -10/Materials | Discovered new exit (range 6) 716 | -10/Materials | Identified exit to Mines 778 | -10/Materials | Entered Mines 779 | -10/Mines | Assembled infested the area 784 | -10/Mines | Assisted by a Guerilla fighting off Assembled 833 | -10/Mines | Core integrity fell below 50% 857 | -10/Mines | Core integrity fell below 20% 867 | -10/Mines | Lost 3 parts (1p1u1w) 885 | -10/Mines | Learned 4 Materials zone layouts 955 | -10/Mines | Destroyed by as-89864 with Assembled Heavy Rifle Last Messages --------------- Overheating: Energy bleed (-13). Seismic Detector destroyed. K-01 Serf collects debris. Assault Rifle destroyed. as-70620 destroyed. K-01 Serf collects debris. K-01 Serf suffers critical hit (Burn). as-81497 destroyed. Acquired 15 matter. Acquired 18 matter. Acquired 9 matter. Acquired 10 matter. Beam Cannon destroyed. Acquired Lgt. Ion Engine. Acquired 10 matter. Acquired derelict log, extracted data. Data stored: Materials zone layouts (x4). Kicked as-89864. Kicked as-89864 out of the way. K-01 Serf collects debris. Map ----- +----------------------------------------------------+ | | | | | | | | | | | | | | | | | | | | | | | | | | | | | | | | | ???????????????????????????????????? | | ???????????????????????????????????? | | ???????????????????????????????????? | | ??################?????????????????? | | ??# #?????????????????? | | ??# #?????????????????? | | ??# """ """ """ #?????????????????? | | ??# """ """ """ #?????????????????? | | ??# """ """ """ #?????????????????? | | ??# a @ #?????????????????? | | ??# """ """ """ #?????????????????? | | ??# """ """ """ #?????????????????? | | ??# """ """ """ #?????????????????? | | ??# #?####????#???????? | | ??##### ########### ##?? #???????? | | ??????# ######???? " ### #???????? | | ??????# #???? #???????? | | ??????##### #???? ###?????? | | ??????????# #????# ??????? | | ??????????# #????# = !%???????? | | ??????????# #????# *% ?????????? | | ??????????# ###??# %% #??????????? | | ??????????# ##?#% ????????????? | | ?????????## %###%%#?????????????? | | ?????????# % #"%#########??????? | | ?????????# % %%% %= #??????? | | ?????????# ########## #####??? | | ????????# #????????# #??? | | ????????# ##????????# ### #??? | | ????????## ###????????## ##%##?? | | ?????????######??????????# #?? | | ???????????????????????# #? | | ??????????????????????# # | | ???????????????????# | +----------------------------------------------------+ Best States ------------- Heat Dissipation 25 Energy Generation 10 Energy Capacity 250 Matter Stores 300 Matter Capacity 300 Sight Range 16 Terrain Scan Density 10 Evasion (%) 55 Recoil Reduction 2 Item Schematics ----------------- None Robot Schematics ------------------ None Fabricated ------------ Nothing Alien Tech Used ----------------- None Achievements -------------- None Challenges ------------ None Game ------ Seed CobblerPhasingMicroactuators Manual? 0 Play Time 00:16:46 Cumulative 30.7 hours Start 2024.05.23 @ 00:04:17 End 2024.05.23 @ 00:23:56 Sessions 1 Manual Loads 0 Difficulty Rogue Special Mode None Game No. 31 Rogue 31 Adventurer 0 Explorer 0 Win Type - Total 0 Types 0/0/0/0/0/0/0/0/0 Lore% 17 Gallery% 20 Achievement% 18 Wizard Run 0 Options --------- Layout 0 ASCII 0 Keyboard 1 Movement Arrows Keybinds 0 Fullscreen 2 Font 20/SmallcapsGlow Map View 66x50 Zoom Use 0% Tactical HUD 0 Map Filters NONE Filters NONE Steam 1 RUN: 3ad1abaa-0b91-44c1-b250-4e90d3c35880